Departmental Area,Entity,Payment Date,Expense type,Expense Area,Supplier Name,Payment Reference,      Invoice Distribution Amount      ,Description,Supplier Type,Expenditure Type
UK Statistics Family,Office for National Statistics,01/02/2024,Specialist User Software And Hardware,CDIO UNGP,Sas Software Ltd,290931," 103,970.40 ",Software Licenses,Large,Programme Expenditure
UK Statistics Family,Office for National Statistics,05/02/2024,FM Contract Payments,Vinci Payments,Vinci Construction UK Limited,291185," 356,682.17 ",Facilities Mangement Services,Large,Programme Expenditure
UK Statistics Family,Office for National Statistics,05/02/2024,Exp - Purchase Of Goods/Services - Postage,Survey Processing Centre,DHL Parcel Ltd,291187," 29,690.70 ",Postage,Large,Programme Expenditure
UK Statistics Family,Office for National Statistics,05/02/2024,Exp - Purchase Of Goods/Services - IT Contractual Services,Digital Delivery,ANDigital Limited,291189," 84,720.00 ",Information Management Services,large,Programme Expenditure
UK Statistics Family,Office for National Statistics,05/02/2024,Exp - Purchase Of Goods And Services Consultants,Divisional Strategy And Support,Shared Meaning Ltd,291191," 27,338.00 ",Consultancy,Large,Programme Expenditure
UK Statistics Family,Office for National Statistics,06/02/2024,Exp - Purchase Of Goods/Services - Accommodation & Bldng Management - Miscellaneous Minor Works,Property Christchurch,Vinci Construction UK Limited,291396," 176,083.28 ",Facilities Mangement Services,Large,Programme Expenditure
UK Statistics Family,Office for National Statistics,06/02/2024,FM Contract Payments,Vinci Payments,Vinci Construction UK Limited,291396," 34,501.89 ",Facilities Mangement Services,Large,Programme Expenditure
UK Statistics Family,Office for National Statistics,06/02/2024,Exp - Purchase Of Goods/Services - IT Contractual Services,PARTNERSHIP DEVELOPMENT,Diegesis Limited,291408," 4,299.76 ",Information Management Services,Large,Programme Expenditure
UK Statistics Family,Office for National Statistics,06/02/2024,Exp - Purchase Of Goods/Services - IT Contractual Services,IT Applications,Diegesis Limited,291408," 23,131.52 ",Information Management Services,Large,Programme Expenditure
UK Statistics Family,Office for National Statistics,06/02/2024,"ICT Outsourcing, Maintenance And Support",Researcher Support And Data Access ,Equiniti-TopLevel,291411," 36,936.00 ",Information Management Services,SME,Programme Expenditure
UK Statistics Family,Office for National Statistics,06/02/2024,Exp - Purchase Of Goods/Services - Contractors,Security Advisory,Parity Resources Limited,291416," 14,315.70 ",Information Management Services,Large,Programme Expenditure
UK Statistics Family,Office for National Statistics,06/02/2024,Exp - Short-Term Contract & Agency Staff - Full Cost,Interviewer Management FiF,Parity Resources Limited,291416," 20,373.60 ",Information Management Services,Large,Programme Expenditure
UK Statistics Family,Office for National Statistics,06/02/2024,Exp - Purchase Of Goods/Services - Field Costs,Interviewer Management FiF,Parity Resources Limited,291416," 4,088.70 ",Information Management Services,Large,Programme Expenditure
UK Statistics Family,Office for National Statistics,07/02/2024,Exp - Purchase Of Goods/Services - IT Contractual Services,PARTNERSHIP DEVELOPMENT,CGI IT UK Limited,291505," 249,391.79 ",Information Management Services,Large,Programme Expenditure
UK Statistics Family,Office for National Statistics,07/02/2024,Exp - Purchase Of Goods/Services - Other Travel,PARTNERSHIP DEVELOPMENT,CGI IT UK Limited,291505, 100.71 ,Information Management Services,Large,Programme Expenditure
UK Statistics Family,Office for National Statistics,07/02/2024,Exp - Purchase Of Goods/Services - IT Contractual Services,IT Applications,Diegesis Limited,291506," 143,435.32 ",Information Management Services,Large,Programme Expenditure
UK Statistics Family,Office for National Statistics,07/02/2024,EXP - PURCHASE OF GOODS/SERVICES - DATA ACQUISITION,Data As A Service,HMRC.,291508," 71,628.60 ",Data Acquisition,Large,Programme Expenditure
UK Statistics Family,Office for National Statistics,08/02/2024,Other Goods And Services,Security And Information Management Saim,Cabinet Office,291642," 44,778.60 ",Security Vetting Services,Large,Programme Expenditure
UK Statistics Family,Office for National Statistics,08/02/2024,Marketing & Media,Campaigns,Savanta Group Ltd,291647," 41,880.00 ",Marketing & Media Services,Large,Programme Expenditure
UK Statistics Family,Office for National Statistics,09/02/2024,Exp - Purchase Of Goods/Services - IT Contractual Services,Digital Delivery,University of Durham,291720," 144,576.00 ",Statistical Services,Large,Programme Expenditure
UK Statistics Family,Office for National Statistics,09/02/2024,Exp - Purchase Of Goods/Services - Other Travel,Corporate Center,Corporate Travel Management ,291721," 47,225.21 ",Travel and Accommodation,SME,Programme Expenditure
UK Statistics Family,Office for National Statistics,09/02/2024,Exp - Purchase Of Goods/Services - IT Contractual Services,CDIO UNGP,CTS (Cloud Technology Solutions Ltd),291726," 111,428.80 ",Information Management Services,Large,Programme Expenditure
UK Statistics Family,Office for National Statistics,09/02/2024,"ICT Outsourcing, Maintenance And Support",IT Operations,Insight Direct,291728," 48,433.92 ",Software Licenses,Large,Programme Expenditure
UK Statistics Family,Office for National Statistics,12/02/2024,Capital Major Works >25K,Property Newport,Vinci Construction UK Limited,291827," 47,139.62 ",Facilities Mangement Services,Large,Programme Expenditure
UK Statistics Family,Office for National Statistics,12/02/2024,Major Works Over 25K,Property Titchfield,Vinci Construction UK Limited,291827,"-8,473.03 ",Facilities Mangement Services,Large,Programme Expenditure
UK Statistics Family,Office for National Statistics,12/02/2024,Exp - Purchase Of Goods/Services - Other Travel,Corporate Center,Corporate Travel Management ,291828," 32,585.07 ",Travel and Accommodation,SME,Programme Expenditure
UK Statistics Family,Office for National Statistics,12/02/2024,Surveys,"External Surveys, Research and Insights",Nisra,291829," 134,250.00 ",Statistical Services,Large,Programme Expenditure
UK Statistics Family,Office for National Statistics,12/02/2024,IT (Owned) At Cost - Additions,IT Operations,Centerprise International Ltd,291830," 1,390,639.29 ",Computers and Peripherals,Large,Programme Expenditure
UK Statistics Family,Office for National Statistics,12/02/2024,Exp - Purchase Of Goods/Services - Training & Development - Professional Membership Fees,MSA Central,HM Treasury Group,291832," 167,386.33 ",Corporate Membership Fees,Large,Programme Expenditure
UK Statistics Family,Office for National Statistics,12/02/2024,IT (Owned) At Cost - Additions,IT Operations,Computacenter (Uk) Limited,291835," 539,972.02 ",Computers and Peripherals,Large,Programme Expenditure
UK Statistics Family,Office for National Statistics,12/02/2024,Surveys,Prices Division,Verian,291838," 42,391.80 ",Statistical Services,SME,Programme Expenditure
UK Statistics Family,Office for National Statistics,12/02/2024,EXP - PURCHASE OF GOODS/SERVICES - DATA ACQUISITION,Prices Division,Verian,291838," 185,899.00 ",Statistical Services,SME,Programme Expenditure
UK Statistics Family,Office for National Statistics,12/02/2024,Exp - Purchase Of Goods/Services - Incentive Payments,Interviewer Support,Pluxee UK Ltd,291843," 6,594.61 ",Survey Response Incentive Vouchers,Large,Programme Expenditure
UK Statistics Family,Office for National Statistics,12/02/2024,Exp - Purchase Of Goods/Services - Incentive Payments,Interviewer Support,Pluxee UK Ltd,291843," 3,791.17 ",Survey Response Incentive Vouchers,Large,Programme Expenditure
UK Statistics Family,Office for National Statistics,12/02/2024,Exp - Purchase Of Goods/Services - Incentive Payments,Interviewer Support,Pluxee UK Ltd,291843, 784.22 ,Survey Response Incentive Vouchers,Large,Programme Expenditure
UK Statistics Family,Office for National Statistics,12/02/2024,Exp - Purchase Of Goods/Services - Incentive Payments,Interviewer Support,Pluxee UK Ltd,291843," 55,963.54 ",Survey Response Incentive Vouchers,Large,Programme Expenditure
UK Statistics Family,Office for National Statistics,12/02/2024,Exp - Purchase Of Goods/Services - Incentive Payments,Interviewer Support,Pluxee UK Ltd,291843," 2,056.74 ",Survey Response Incentive Vouchers,Large,Programme Expenditure
UK Statistics Family,Office for National Statistics,12/02/2024,Exp - Purchase Of Goods/Services - Incentive Payments,Interviewer Support,Pluxee UK Ltd,291843," 3,993.43 ",Survey Response Incentive Vouchers,Large,Programme Expenditure
UK Statistics Family,Office for National Statistics,12/02/2024,Exp - Purchase Of Goods/Services - Incentive Payments,Crime Income And Wealth,Pluxee UK Ltd,291843," 4,308.82 ",Survey Response Incentive Vouchers,Large,Programme Expenditure
UK Statistics Family,Office for National Statistics,12/02/2024,Exp - Purchase Of Goods/Services - Incentive Payments,Public Service Productivity Review,Pluxee UK Ltd,291843, 98.60 ,Survey Response Incentive Vouchers,Large,Programme Expenditure
UK Statistics Family,Office for National Statistics,12/02/2024,Exp - Purchase Of Goods/Services - Contractors,Testing,Parity Resources Limited,291844," 5,398.44 ",Information Management Services,Large,Programme Expenditure
UK Statistics Family,Office for National Statistics,12/02/2024,Exp - Purchase Of Goods/Services - Contractors,Strategy And Architecture,Parity Resources Limited,291844," 7,578.90 ",Information Management Services,Large,Programme Expenditure
UK Statistics Family,Office for National Statistics,12/02/2024,Exp - Purchase Of Goods/Services - Contractors,Strategy And Architecture,Parity Resources Limited,291844," 4,500.00 ",Information Management Services,Large,Programme Expenditure
UK Statistics Family,Office for National Statistics,12/02/2024,Exp - Purchase Of Goods/Services - Contractors,IT Applications,Parity Resources Limited,291844," 3,900.00 ",Information Management Services,Large,Programme Expenditure
UK Statistics Family,Office for National Statistics,12/02/2024,Exp - Short-Term Contract & Agency Staff - Full Cost,Interviewer Management FiF,Parity Resources Limited,291844," 19,199.28 ",Information Management Services,Large,Programme Expenditure
UK Statistics Family,Office for National Statistics,12/02/2024,Exp - Purchase Of Goods/Services - Field Costs,Interviewer Management FiF,Parity Resources Limited,291844," 4,870.10 ",Information Management Services,Large,Programme Expenditure
UK Statistics Family,Office for National Statistics,13/02/2024,Exp - Purchase Of Goods/Services - Contractors,Strategy And Architecture,La International,292026," 23,411.04 ",Information Management Services,SME,Programme Expenditure
UK Statistics Family,Office for National Statistics,13/02/2024,Exp - Purchase Of Goods/Services - Contractors,IT Applications,La International,292026," 12,369.19 ",Information Management Services,SME,Programme Expenditure
UK Statistics Family,Office for National Statistics,13/02/2024,Exp - Purchase Of Goods/Services - Training & Development - Professional Membership Fees,MSA Central,HM Treasury Group,292027," 97,107.79 ",Corporate Membership Fees,Large,Programme Expenditure
UK Statistics Family,Office for National Statistics,13/02/2024,Exp - Purchase Of Goods/Services - Postage,REPROGRAPHICS,Royal Mail Group Ltd,292028," 28,275.38 ",Postage,Large,Programme Expenditure
UK Statistics Family,Office for National Statistics,13/02/2024,Exp - Purchase Of Goods/Services - Postage,Survey Processing Centre,Royal Mail Group Ltd,292028," 1,694.30 ",Postage,Large,Programme Expenditure
UK Statistics Family,Office for National Statistics,13/02/2024,Exp - Purchase Of Goods/Services - IT Contractual Services,DATA ENGINEERING OPERATIONS AND DELIVERY,CTS (Cloud Technology Solutions Ltd),292034," 36,842.40 ",Information Management Services,Large,Programme Expenditure
UK Statistics Family,Office for National Statistics,13/02/2024,Other Professional Services,People Solutions,Government Legal Department,292038," 25,535.76 ",Legal Services,Large,Programme Expenditure
UK Statistics Family,Office for National Statistics,13/02/2024,Exp - Purchase Of Goods/Services - Contractors,Security Advisory,Talent International,292039," 15,299.80 ",Information Management Services,SME,Programme Expenditure
UK Statistics Family,Office for National Statistics,13/02/2024,Exp - Purchase Of Goods/Services - Contractors,CDIO UNGP,Talent International,292039," 17,099.77 ",Information Management Services,SME,Programme Expenditure
UK Statistics Family,Office for National Statistics,13/02/2024,Exp - Purchase Of Goods/Services - Contractors,Digital Delivery,Talent International,292039," 17,100.00 ",Information Management Services,SME,Programme Expenditure
UK Statistics Family,Office for National Statistics,13/02/2024,Exp - Purchase Of Goods/Services - Incentive Payments,Interviewer Support,Pluxee UK Ltd,292047," 1,133.90 ",Survey Response Incentive Vouchers,Large,Programme Expenditure
UK Statistics Family,Office for National Statistics,13/02/2024,Exp - Purchase Of Goods/Services - Incentive Payments,Interviewer Support,Pluxee UK Ltd,292047," 1,646.62 ",Survey Response Incentive Vouchers,Large,Programme Expenditure
UK Statistics Family,Office for National Statistics,13/02/2024,Exp - Purchase Of Goods/Services - Incentive Payments,Interviewer Support,Pluxee UK Ltd,292047, 493.00 ,Survey Response Incentive Vouchers,Large,Programme Expenditure
UK Statistics Family,Office for National Statistics,13/02/2024,Exp - Purchase Of Goods/Services - Incentive Payments,Interviewer Support,Pluxee UK Ltd,292047," 4,604.62 ",Survey Response Incentive Vouchers,Large,Programme Expenditure
UK Statistics Family,Office for National Statistics,13/02/2024,Exp - Purchase Of Goods/Services - Incentive Payments,Interviewer Support,Pluxee UK Ltd,292047," 18,314.95 ",Survey Response Incentive Vouchers,Large,Programme Expenditure
UK Statistics Family,Office for National Statistics,13/02/2024,Exp - Purchase Of Goods/Services - Incentive Payments,Crime Income And Wealth,Pluxee UK Ltd,292047," 2,775.59 ",Survey Response Incentive Vouchers,Large,Programme Expenditure
UK Statistics Family,Office for National Statistics,13/02/2024,Exp - Purchase Of Goods/Services - Incentive Payments,Public Service Productivity Review,Pluxee UK Ltd,292047, 138.04 ,Survey Response Incentive Vouchers,Large,Programme Expenditure
UK Statistics Family,Office for National Statistics,13/02/2024,Hosting,IT Operations,Crown Hosting Data Centres Limited,292052," 40,361.57 ",Information Management Services,SME,Programme Expenditure
UK Statistics Family,Office for National Statistics,14/02/2024,Exp - Purchase Of Goods/Services - Postage,Survey Processing Centre,DHL Parcel Ltd,292219," 30,755.71 ",Postage,Large,Programme Expenditure
UK Statistics Family,Office for National Statistics,14/02/2024,Exp - Purchase Of Goods/Services - Postage,REPROGRAPHICS,Royal Mail Group Ltd,292223," 72,543.19 ",Postage,Large,Programme Expenditure
UK Statistics Family,Office for National Statistics,14/02/2024,Exp - Purchase Of Goods/Services - Postage,Survey Processing Centre,Royal Mail Group Ltd,292223," 1,896.76 ",Postage,Large,Programme Expenditure
UK Statistics Family,Office for National Statistics,14/02/2024,Exp - Purchase Of Goods/Services - Postage,Interviewer Support,Royal Mail Group Ltd,292223, 215.24 ,Postage,Large,Programme Expenditure
UK Statistics Family,Office for National Statistics,14/02/2024,Specialist User Software And Hardware,Security Operations,Computacenter (Uk) Limited,292224," 232,407.02 ",Software Licenses,Large,Programme Expenditure
UK Statistics Family,Office for National Statistics,14/02/2024,Exp - Office Furniture,Business Analysis & Soc Survey,Gresham Office Furniture Limited,292227," 27,018.60 ",Office Furniture,SME,Programme Expenditure
UK Statistics Family,Office for National Statistics,14/02/2024,EXP - PURCHASE OF GOODS/SERVICES -  NON IT CONTRACTUAL PAYMENTS,People Solutions,Health Partners Ltd,292233," 27,465.95 ",Occupational Health,Large,Programme Expenditure
UK Statistics Family,Office for National Statistics,14/02/2024,Exp - Purchase Of Goods/Services - IT Contractual Services,Office Of Chief Data And Information,Alexander Mann Solutions Limited,292235," 90,551.52 ",Information Management Services,Large,Programme Expenditure
UK Statistics Family,Office for National Statistics,15/02/2024,Exp - Purchase Of Goods/Services - IT Contractual Services,Digital Delivery,University of Durham,292308," 144,576.00 ",Statistical Services,Large,Programme Expenditure
UK Statistics Family,Office for National Statistics,15/02/2024,Hosting,IT Operations,ITS Computing Limited,292310," 48,400.00 ",Information Management Services,Large,Programme Expenditure
UK Statistics Family,Office for National Statistics,15/02/2024,Surveys,"External Surveys, Research and Insights",Nisra,292312," 146,432.15 ",Statistical Services,Large,Programme Expenditure
UK Statistics Family,Office for National Statistics,15/02/2024,Exp - Purchase Of Goods/Services - Contractors,Security Advisory,Certes Computing Ltd,292315," 21,516.79 ",Information Management Services,SME,Programme Expenditure
UK Statistics Family,Office for National Statistics,15/02/2024,Exp - Purchase Of Goods/Services - Contractors,CDIO UNGP,Certes Computing Ltd,292315," 13,330.99 ",Information Management Services,SME,Programme Expenditure
UK Statistics Family,Office for National Statistics,15/02/2024,Exp - Purchase Of Goods/Services - Contractors,IT Applications,Certes Computing Ltd,292315," 31,352.12 ",Information Management Services,SME,Programme Expenditure
UK Statistics Family,Office for National Statistics,15/02/2024,Exp - Purchase Of Goods/Services - Postage,REPROGRAPHICS,Royal Mail Group Ltd,292317," 60,506.47 ",Postage,Large,Programme Expenditure
UK Statistics Family,Office for National Statistics,15/02/2024,Exp - Short-Term Contract & Agency Staff - Full Cost,UKSA,Malikshaw Interim & Executive,292320," 2,771.45 ",Information Management Services,SME,Programme Expenditure
UK Statistics Family,Office for National Statistics,15/02/2024,Exp - Purchase Of Goods/Services - Contractors,INTEGRATED DATA STRATEGY AND DELIVERY,Malikshaw Interim & Executive,292320," 15,126.67 ",Information Management Services,SME,Programme Expenditure
UK Statistics Family,Office for National Statistics,15/02/2024,Exp - Short-Term Contract & Agency Staff - Full Cost,Census & Soc Methodology Dd,Malikshaw Interim & Executive,292320," 3,349.98 ",Information Management Services,SME,Programme Expenditure
UK Statistics Family,Office for National Statistics,15/02/2024,Exp - Purchase Of Goods/Services - Contractors,CDIO UNGP,Malikshaw Interim & Executive,292320," 14,040.00 ",Information Management Services,SME,Programme Expenditure
UK Statistics Family,Office for National Statistics,15/02/2024,Exp - Purchase Of Goods/Services - Contractors,DATA ENGINEERING OPERATIONS AND DELIVERY,Malikshaw Interim & Executive,292320," 14,400.00 ",Information Management Services,SME,Programme Expenditure
UK Statistics Family,Office for National Statistics,15/02/2024,Exp - Purchase Of Goods/Services - Contractors,DATA ENGINEERING OPERATIONS AND DELIVERY,Malikshaw Interim & Executive,292320," 15,361.20 ",Information Management Services,SME,Programme Expenditure
UK Statistics Family,Office for National Statistics,15/02/2024,Exp - Short-Term Contract & Agency Staff - Full Cost,Interviewer Management TU,Malikshaw Interim & Executive,292320," 5,557.78 ",Information Management Services,SME,Programme Expenditure
UK Statistics Family,Office for National Statistics,15/02/2024,Exp - Purchase Of Goods/Services - IT Contractual Services,PARTNERSHIP DEVELOPMENT,Diegesis Limited,292323," 9,330.30 ",Information Management Services,Large,Programme Expenditure
UK Statistics Family,Office for National Statistics,15/02/2024,Exp - Purchase Of Goods/Services - IT Contractual Services,IT Applications,Diegesis Limited,292323," 199,691.10 ",Information Management Services,Large,Programme Expenditure
UK Statistics Family,Office for National Statistics,15/02/2024,Exp - Purchase Of Goods/Services - Incentive Payments,Interviewer Support,Pluxee UK Ltd,292331," 3,447.96 ",Survey Response Incentive Vouchers,Large,Programme Expenditure
UK Statistics Family,Office for National Statistics,15/02/2024,Exp - Purchase Of Goods/Services - Incentive Payments,Interviewer Support,Pluxee UK Ltd,292331," 1,889.19 ",Survey Response Incentive Vouchers,Large,Programme Expenditure
UK Statistics Family,Office for National Statistics,15/02/2024,Exp - Purchase Of Goods/Services - Incentive Payments,Interviewer Support,Pluxee UK Ltd,292331, 897.26 ,Survey Response Incentive Vouchers,Large,Programme Expenditure
UK Statistics Family,Office for National Statistics,15/02/2024,Exp - Purchase Of Goods/Services - Incentive Payments,Interviewer Support,Pluxee UK Ltd,292331," 4,801.82 ",Survey Response Incentive Vouchers,Large,Programme Expenditure
UK Statistics Family,Office for National Statistics,15/02/2024,Exp - Purchase Of Goods/Services - Incentive Payments,Interviewer Support,Pluxee UK Ltd,292331," 64,873.23 ",Survey Response Incentive Vouchers,Large,Programme Expenditure
UK Statistics Family,Office for National Statistics,15/02/2024,Exp - Purchase Of Goods/Services - Incentive Payments,Crime Income And Wealth,Pluxee UK Ltd,292331," 1,750.15 ",Survey Response Incentive Vouchers,Large,Programme Expenditure
UK Statistics Family,Office for National Statistics,15/02/2024,Exp - Purchase Of Goods/Services - Incentive Payments,Public Service Productivity Review,Pluxee UK Ltd,292331, 98.60 ,Survey Response Incentive Vouchers,Large,Programme Expenditure
UK Statistics Family,Office for National Statistics,15/02/2024,Exp - Purchase Of Goods And Services Consultants,Policy Secretariat,Parity Resources Limited,292332," 5,365.81 ",Information Management Services,Large,Programme Expenditure
UK Statistics Family,Office for National Statistics,15/02/2024,Exp - Purchase Of Goods/Services - Contractors,Testing,Parity Resources Limited,292332," 2,699.22 ",Information Management Services,Large,Programme Expenditure
UK Statistics Family,Office for National Statistics,15/02/2024,Exp - Purchase Of Goods/Services - Contractors,Security Advisory,Parity Resources Limited,292332," 28,178.26 ",Information Management Services,Large,Programme Expenditure
UK Statistics Family,Office for National Statistics,15/02/2024,Exp - Purchase Of Goods/Services - Contractors,CDIO UNGP,Parity Resources Limited,292332," 9,201.00 ",Information Management Services,Large,Programme Expenditure
UK Statistics Family,Office for National Statistics,15/02/2024,Exp - Purchase Of Goods/Services - Contractors,Strategy And Architecture,Parity Resources Limited,292332," 4,210.50 ",Information Management Services,Large,Programme Expenditure
UK Statistics Family,Office for National Statistics,15/02/2024,Exp - Purchase Of Goods/Services - Contractors,Strategy And Architecture,Parity Resources Limited,292332," 4,500.00 ",Information Management Services,Large,Programme Expenditure
UK Statistics Family,Office for National Statistics,15/02/2024,Exp - Purchase Of Goods/Services - Contractors,IT Applications,Parity Resources Limited,292332," 7,800.00 ",Information Management Services,Large,Programme Expenditure
UK Statistics Family,Office for National Statistics,15/02/2024,Exp - Short-Term Contract & Agency Staff - Full Cost,Interviewer Management FiF,Parity Resources Limited,292332," 12,046.89 ",Information Management Services,Large,Programme Expenditure
UK Statistics Family,Office for National Statistics,15/02/2024,Exp - Purchase Of Goods/Services - Field Costs,Interviewer Management FiF,Parity Resources Limited,292332," 2,601.93 ",Information Management Services,Large,Programme Expenditure
UK Statistics Family,Office for National Statistics,16/02/2024,End User Software And Hardware,IT Operations,Scc,292421," 171,199.99 ",Software Licenses,Large,Programme Expenditure
UK Statistics Family,Office for National Statistics,16/02/2024,Exp - Purchase Of Goods/Services - Catering & Hospitality,Property Services,BaxterStorey,292424," 41,856.89 ",Catering and Hospitality,Large,Programme Expenditure
UK Statistics Family,Office for National Statistics,16/02/2024,Exp - Purchase Of Goods/Services - IT Contractual Services,CLOUD ARCHITECTURE,CTS (Cloud Technology Solutions Ltd),292425," 50,184.00 ",Information Management Services,Large,Programme Expenditure
UK Statistics Family,Office for National Statistics,16/02/2024,Hosting,CLOUD ARCHITECTURE,CTS (Cloud Technology Solutions Ltd),292425," 129,805.66 ",Information Management Services,Large,Programme Expenditure
UK Statistics Family,Office for National Statistics,16/02/2024,Exp - Purchase Of Goods/Services - IT Contractual Services,CDIO UNGP,CTS (Cloud Technology Solutions Ltd),292425," 19,633.74 ",Information Management Services,Large,Programme Expenditure
UK Statistics Family,Office for National Statistics,16/02/2024,Exp - Purchase Of Goods/Services - IT Contractual Services,CDIO UNGP,CTS (Cloud Technology Solutions Ltd),292425," 103,962.72 ",Information Management Services,Large,Programme Expenditure
UK Statistics Family,Office for National Statistics,16/02/2024,Exp - Permanent UK Staff - PRP Voucher Payments,ONS Corporate Funds,Edenred (UK Group) Limited,292426," 68,250.00 ",Performance Reward Vouchers,Large,Programme Expenditure
UK Statistics Family,Office for National Statistics,16/02/2024,Exp - Purchase Of Goods/Services - IT Contractual Services,Data Architecture,ANDigital Limited,292427," 12,426.00 ",Information Management Services,large,Programme Expenditure
UK Statistics Family,Office for National Statistics,16/02/2024,Exp - Purchase Of Goods/Services - IT Contractual Services,CDIO UNGP,ANDigital Limited,292427," 12,426.00 ",Information Management Services,large,Programme Expenditure
UK Statistics Family,Office for National Statistics,16/02/2024,Exp - Purchase Of Goods/Services - IT Contractual Services,CDIO UNGP,ANDigital Limited,292427," 15,456.00 ",Information Management Services,large,Programme Expenditure
UK Statistics Family,Office for National Statistics,16/02/2024,Exp - Purchase Of Goods/Services - IT Contractual Services,Digital Delivery,ANDigital Limited,292427," 106,560.00 ",Information Management Services,large,Programme Expenditure
UK Statistics Family,Office for National Statistics,16/02/2024,Exp - Purchase Of Goods/Services - IT Contractual Services,Digital Delivery,ANDigital Limited,292427," 17,940.00 ",Information Management Services,large,Programme Expenditure
UK Statistics Family,Office for National Statistics,16/02/2024,Exp - Purchase Of Goods/Services - IT Contractual Services,Digital Delivery,ANDigital Limited,292427," 26,460.00 ",Information Management Services,large,Programme Expenditure
UK Statistics Family,Office for National Statistics,16/02/2024,Exp - Purchase Of Goods/Services - Incentive Payments,Interviewer Support,Pluxee UK Ltd,292428," 3,346.55 ",Survey Response Incentive Vouchers,Large,Programme Expenditure
UK Statistics Family,Office for National Statistics,16/02/2024,Exp - Purchase Of Goods/Services - Incentive Payments,Interviewer Support,Pluxee UK Ltd,292428," 2,955.18 ",Survey Response Incentive Vouchers,Large,Programme Expenditure
UK Statistics Family,Office for National Statistics,16/02/2024,Exp - Purchase Of Goods/Services - Incentive Payments,Interviewer Support,Pluxee UK Ltd,292428, 450.04 ,Survey Response Incentive Vouchers,Large,Programme Expenditure
UK Statistics Family,Office for National Statistics,16/02/2024,Exp - Purchase Of Goods/Services - Incentive Payments,Interviewer Support,Pluxee UK Ltd,292428," 5,844.39 ",Survey Response Incentive Vouchers,Large,Programme Expenditure
UK Statistics Family,Office for National Statistics,16/02/2024,Exp - Purchase Of Goods/Services - Incentive Payments,Interviewer Support,Pluxee UK Ltd,292428," 67,013.71 ",Survey Response Incentive Vouchers,Large,Programme Expenditure
UK Statistics Family,Office for National Statistics,19/02/2024,Surveys,Analysis Microdata And Engagement,Nisra,292508," 192,000.00 ",Statistical Services,Large,Programme Expenditure
UK Statistics Family,Office for National Statistics,19/02/2024,IT (Owned) At Cost - Additions,IT Operations,Computacenter (Uk) Limited,292509," 533,220.79 ",Computers and Peripherals,Large,Programme Expenditure
UK Statistics Family,Office for National Statistics,19/02/2024,End User Software And Hardware,IT Operations,Computacenter (Uk) Limited,292509," 46,281.05 ",Computers and Peripherals,Large,Programme Expenditure
UK Statistics Family,Office for National Statistics,19/02/2024,End User Software And Hardware,IT Operations,Computacenter (Uk) Limited,292509," 7,132.80 ",Computers and Peripherals,Large,Programme Expenditure
UK Statistics Family,Office for National Statistics,19/02/2024,Exp - Purchase Of Goods/Services - IT Contractual Services,CDIO UNGP,CTS (Cloud Technology Solutions Ltd),292510," 111,428.80 ",Information Management Services,Large,Programme Expenditure
UK Statistics Family,Office for National Statistics,19/02/2024,Exp - Purchase Of Goods And Services Consultants,Productivity Research And Professional Development,Kings College London,292514," 309,969.60 ",Statistical Services,Large,Programme Expenditure
UK Statistics Family,Office for National Statistics,20/02/2024,Exp - Purchase Of Goods/Services - Incentive Payments,Interviewer Support,Pluxee UK Ltd,292675," 60,840.14 ",Survey Response Incentive Vouchers,Large,Programme Expenditure
UK Statistics Family,Office for National Statistics,20/02/2024,Exp - Purchase Of Goods/Services - Incentive Payments,Interviewer Support,Pluxee UK Ltd,292675, 446.80 ,Survey Response Incentive Vouchers,Large,Programme Expenditure
UK Statistics Family,Office for National Statistics,20/02/2024,Exp - Purchase Of Goods/Services - Incentive Payments,Interviewer Support,Pluxee UK Ltd,292675," 3,803.54 ",Survey Response Incentive Vouchers,Large,Programme Expenditure
UK Statistics Family,Office for National Statistics,20/02/2024,Exp - Purchase Of Goods/Services - Incentive Payments,Strategy And Engagement,Pluxee UK Ltd,292675, 236.88 ,Survey Response Incentive Vouchers,Large,Programme Expenditure
UK Statistics Family,Office for National Statistics,21/02/2024,PPE - NON-PROPERTY (LEASED NON-PFI) - COST - ADDITIONS (AS LESSEE),IT Operations,Crown Hosting Data Centres Limited,292824," 63,138.54 ",Information Management Services,SME,Programme Expenditure
UK Statistics Family,Office for National Statistics,21/02/2024,End User Software And Hardware,IT Operations,Scc,292826," 171,199.99 ",Software Licenses,Large,Programme Expenditure
UK Statistics Family,Office for National Statistics,21/02/2024,Print & Post,REPROGRAPHICS,APS Group,292829," 38,935.82 ",Print and Post Services,Large,Programme Expenditure
UK Statistics Family,Office for National Statistics,21/02/2024,Surveys,Crime Statistics,Verian,292831," 231,892.80 ",Statistical Services,SME,Programme Expenditure
UK Statistics Family,Office for National Statistics,21/02/2024,Surveys,Crime Statistics,Verian,292831," 492,078.00 ",Statistical Services,SME,Programme Expenditure
UK Statistics Family,Office for National Statistics,22/02/2024,Exp - Purchase Of Goods/Services - Postage,REPROGRAPHICS,Royal Mail Group Ltd,292915," 39,271.49 ",Postage,Large,Programme Expenditure
UK Statistics Family,Office for National Statistics,22/02/2024,Exp - Purchase Of Goods/Services - Postage,Interviewer Management TU,Royal Mail Group Ltd,292915, 54.76 ,Postage,Large,Programme Expenditure
UK Statistics Family,Office for National Statistics,22/02/2024,Exp - Purchase Of Goods/Services - Telecoms,IT Operations,Cdw Limited,292919," 106,610.40 ",Information Management Services,Large,Programme Expenditure
UK Statistics Family,Office for National Statistics,22/02/2024,Exp - Purchase Of Goods/Services - Incentive Payments,Interviewer Support,Pluxee UK Ltd,292929," 2,014.01 ",Survey Response Incentive Vouchers,Large,Programme Expenditure
UK Statistics Family,Office for National Statistics,22/02/2024,Exp - Purchase Of Goods/Services - Incentive Payments,Interviewer Support,Pluxee UK Ltd,292929," 3,331.17 ",Survey Response Incentive Vouchers,Large,Programme Expenditure
UK Statistics Family,Office for National Statistics,22/02/2024,Exp - Purchase Of Goods/Services - Incentive Payments,Interviewer Support,Pluxee UK Ltd,292929," 26,785.53 ",Survey Response Incentive Vouchers,Large,Programme Expenditure
UK Statistics Family,Office for National Statistics,22/02/2024,Exp - Purchase Of Goods/Services - Incentive Payments,Interviewer Support,Pluxee UK Ltd,292929, 845.52 ,Survey Response Incentive Vouchers,Large,Programme Expenditure
UK Statistics Family,Office for National Statistics,22/02/2024,Exp - Purchase Of Goods/Services - Incentive Payments,Interviewer Support,Pluxee UK Ltd,292929," 3,273.52 ",Survey Response Incentive Vouchers,Large,Programme Expenditure
UK Statistics Family,Office for National Statistics,22/02/2024,Exp - Purchase Of Goods/Services - Incentive Payments,Interviewer Support,Pluxee UK Ltd,292929," 14,149.10 ",Survey Response Incentive Vouchers,Large,Programme Expenditure
UK Statistics Family,Office for National Statistics,22/02/2024,Exp - Purchase Of Goods/Services - Incentive Payments,Crime Income And Wealth,Pluxee UK Ltd,292929, 616.25 ,Survey Response Incentive Vouchers,Large,Programme Expenditure
UK Statistics Family,Office for National Statistics,22/02/2024,Exp - Purchase Of Goods/Services - Incentive Payments,Public Service Productivity Review,Pluxee UK Ltd,292929, 49.30 ,Survey Response Incentive Vouchers,Large,Programme Expenditure
UK Statistics Family,Office for National Statistics,23/02/2024,Training & Development,Business Assurance (OCP),Natcen Social Research,293013," 26,700.00 ",Training and Educational Services,Large,Programme Expenditure
UK Statistics Family,Office for National Statistics,23/02/2024,Hosting,IT Operations,ITS Computing Limited,293014," 48,400.00 ",Information Management Services,Large,Programme Expenditure
UK Statistics Family,Office for National Statistics,23/02/2024,Exp - Purchase Of Goods And Services Consultants,INTEGRATED DATA STRATEGY AND DELIVERY,Pricewaterhousecoopers Llp,293015," 909,662.26 ",Consultancy,Large,Programme Expenditure
UK Statistics Family,Office for National Statistics,23/02/2024,Exp - Purchase Of Goods/Services - IT Contractual Services,PARTNERSHIP DEVELOPMENT,CGI IT UK Limited,293017," 201,975.95 ",Information Management Services,Large,Programme Expenditure
UK Statistics Family,Office for National Statistics,23/02/2024,EXP - PURCHASE OF GOODS/SERVICES - DATA ACQUISITION,Data As A Service,Telefonica UK Limited,293021," 123,809.59 ",Data Acquisition,Large,Programme Expenditure
UK Statistics Family,Office for National Statistics,26/02/2024,Surveys,"External Surveys, Research and Insights",Natcen Social Research,293105," 1,120,335.60 ",Statistical Services,Large,Programme Expenditure
UK Statistics Family,Office for National Statistics,26/02/2024,FM Contract Payments,Vinci Payments,Vinci Construction UK Limited,293106," 409,032.36 ",Facilities Mangement Services,Large,Programme Expenditure
UK Statistics Family,Office for National Statistics,26/02/2024,EXP - PURCHASE OF GOODS/SERVICES - DATA ACQUISITION,Prices Division,Verian,293109," 229,068.00 ",Statistical Services,SME,Programme Expenditure
UK Statistics Family,Office for National Statistics,26/02/2024,Software Licences At Cost - Additions,IT Operations,Actian Europe Limited,293116," 1,800,000.00 ",Software Licenses,SME,Programme Expenditure
UK Statistics Family,Office for National Statistics,27/02/2024,Hosting,CLOUD ARCHITECTURE,Amazon Web Services Inc,293312," 346,849.84 ",Information Management Services,Large,Programme Expenditure
UK Statistics Family,Office for National Statistics,27/02/2024,EXP - PURCHASE OF GOODS/SERVICES - DATA ACQUISITION,Data As A Service,HMRC.,293316," 99,027.00 ",Data Acquisition,Large,Programme Expenditure
UK Statistics Family,Office for National Statistics,12/02/2024,Surveys,HALE,African Institute for Mathematical Sciences,30004478," 58,913.68 ",Collaborative Research Grant Funding,Large,Programme Expenditure
UK Statistics Family,Office for National Statistics,15/02/2024,Exp - Purchase Of Goods/Servcies - Stationery,Lodgecard,Royal Bank of Scotland,30004486," 1,553.79 ",Multiple Procurement Card Purchases  - Stationery ,Large,Programme Expenditure
UK Statistics Family,Office for National Statistics,15/02/2024,Other Goods And Services,GPC,Royal Bank of Scotland,30004486," 41,814.69 ",Multiple Procurement Card Purchases - other goods/services  ,Large,Programme Expenditure
UK Statistics Family,Office for National Statistics,16/02/2024,Electricity,Property Titchfield,Edf Energy,30004487," 32,403.49 ",Utility Costs,Large,Programme Expenditure
UK Statistics Family,Office for National Statistics,16/02/2024,Electricity,Property Newport,Edf Energy,30004488," 38,242.36 ",Utility Costs,Large,Programme Expenditure
UK Statistics Family,Office for National Statistics,26/02/2024,Exp - Short-Term Contract & Agency Staff - Full Cost,Interviewer Management FiF,Parity Resources Limited,30004493," 35,988.66 ",Information Management Services,Large,Programme Expenditure
UK Statistics Family,Office for National Statistics,26/02/2024,Exp - Purchase Of Goods/Services - Field Costs,Interviewer Management FiF,Parity Resources Limited,30004493," 6,018.13 ",Information Management Services,Large,Programme Expenditure
UK Statistics Family,Office for National Statistics,26/02/2024,Exp - Short-Term Contract & Agency Staff - Full Cost,Interviewer Support,Parity Resources Limited,30004493, 319.20 ,Information Management Services,Large,Programme Expenditure
UK Statistics Family,Office for National Statistics,26/02/2024,Exp - Purchase Of Goods/Services - Field Costs,Interviewer Support,Parity Resources Limited,30004493, 33.96 ,Information Management Services,Large,Programme Expenditure
UK Statistics Family,Office for National Statistics,27/02/2024,Surveys,HALE,University of Ghana Regional Institute of Population Studies (RIPS),30004495," 122,228.39 ",Collaborative Research Grant Funding,Large,Programme Expenditure
UK Statistics Family,Office for National Statistics,29/02/2024,IT (Owned) At Cost - Additions,Tech Delivery Next Gen IT And Infrastructure,Oracle Corporation UK Ltd,30004501," 29,040.00 ",Information Management Services,Large,Programme Expenditure
UK Statistics Family,Office for National Statistics,29/02/2024,Hosting,Tech Delivery Next Gen IT And Infrastructure,Oracle Corporation UK Ltd,30004501," 104,160.00 ",Information Management Services,Large,Programme Expenditure
UK Statistics Family,Office for National Statistics,29/02/2024,Exp - Purchase Of Goods/Services - IT Contractual Services,Finance,Oracle Corporation UK Ltd,30004502," 214,954.44 ",Information Management Services,Large,Programme Expenditure
UK Statistics Family,Office for National Statistics,29/02/2024,Exp - Purchase Of Goods/Services - IT Contractual Services,PARTNERSHIP DEVELOPMENT,CGI IT UK Limited,30004503," 58,058.72 ",Information Management Services,Large,Programme Expenditure
UK Statistics Family,Office for National Statistics,29/02/2024,Exp - Purchase Of Goods/Services - IT Contractual Services,PARTNERSHIP DEVELOPMENT,CGI IT UK Limited,30004503," 164,405.79 ",Information Management Services,Large,Programme Expenditure
UK Statistics Family,Office for National Statistics,29/02/2024,Exp - Purchase Of Goods/Services - Other Travel,PARTNERSHIP DEVELOPMENT,CGI IT UK Limited,30004503, 41.18 ,Information Management Services,Large,Programme Expenditure
UK Statistics Family,Office for National Statistics,29/02/2024,Exp - Purchase Of Goods/Services - Postage,REPROGRAPHICS,Royal Mail Group Ltd,30004504," 44,897.60 ",Postage,Large,Programme Expenditure
UK Statistics Family,Office for National Statistics,29/02/2024,"ICT Outsourcing, Maintenance And Support",IT Operations,Computacenter (Uk) Limited,30004505," 280,049.09 ",Software Licenses,Large,Programme Expenditure
UK Statistics Family,Office for National Statistics,29/02/2024,Buildings Under Construction,Property Services,Vinci Construction UK Limited,30004506," 47,852.32 ",Facilities Mangement Services,Large,Programme Expenditure
,,,,,,,"16,112,214.71",,,
